[Event "13th Poti Nana Aleksandria Cup"]
[Site "Poti"]
[Date "2018.07.15"]
[Round "4"]
[White "Harutyunian, Tigran K"]
[Black "Arabidze, Meri"]
[Result "1/2-1/2"]
[ECO "D07"]
[WhiteElo "2500"]
[BlackElo "2397"]
[Annotator "ChessBase"]
[PlyCount "66"]
[EventDate "2018.07.13"]
[EventType "swiss"]
[EventCountry "GEO"]
[SourceTitle "playchess.com"]
[Source "ChessBase"]
[SourceQuality "1"]
[TimeControl "40/5400+30:1800+30"]

1. d4 {[%emt 0:00:00]} d5 {[%emt 0:00:00]} 2. c4 {[%emt 0:00:09]} Nc6 {[%emt 0:00:13]} 3. cxd5 {[%emt 0:02:21]} Qxd5 {[%emt 0:00:09]} 4. e3 {[%emt 0:00:07]} e5 {[%emt 0:00:25]} 5. Nc3 {[%emt 0:00:12]} Bb4 {[%emt 0:00:15]} 6. Bd2 {[%emt 0:01:08]} Bxc3 {[%emt 0:00:48]} 7. bxc3 {[%emt 0:00:14]} Nf6 {[%emt 0:00:26]} 8. Qb3 {[%emt 0:13:59]} Qd6 {[%emt 0:07:12]} 9. Bc1 {[%emt 0:05:07]} Be6 {[%emt 0:04:52]} 10. Ba3 {[%emt 0:00:43]} Bxb3 {[%emt 0:06:06]} 11. Bxd6 {[%emt 0:00:06]} cxd6 {[%emt 0:00:16]} 12. axb3 {[%emt 0:00:05]} exd4 {[%emt 0:07:50]} 13. exd4 {[%emt 0:01:08]} Kd7 {[%emt 0:00:10]} 14. Bd3 {[%emt 0:01:15]} Rhe8+ {[%emt 0:07:30]} 15. Ne2 {[%emt 0:00:44]} a6 {[%emt 0:00:46]} 16. O-O {[%emt 0:02:12]} Kc7 {[%emt 0:03:10]} 17. Ra3 {[%emt 0:04:12]} b5 {[%emt 0:06:22]} 18. b4 {[%emt 0:04:52]} Nd5 {[%emt 0:03:36]} 19. f3 {[%emt 0:02:35]} f5 {[%emt 0:09:08]} 20. Kf2 {[%emt 0:00:39]} g6 {[%emt 0:01:05]} 21. h4 {[%emt 0:02:19]} Kb6 {[%emt 0:01:39]} 22. h5 {[%emt 0:06:44]} Ra7 {[%emt 0:03:30]} 23. Rh1 {[%emt 0:00:54]} Rae7 {[%emt 0:01:39]} 24. hxg6 {[%emt 0:05:48]} hxg6 {[%emt 0:00:12]} 25. Rha1 {[%emt 0:01:58]} Nb8 {[%emt 0:01:01]} 26. Rh1 {[%emt 0:04:41]} Nc6 {[%emt 0:05:33]} 27. Rha1 {[%emt 0:00:18]} Nb8 {[%emt 0:00:41]} 28. Rh1 {[%emt 0:00:06]} Re3 {[%emt 0:07:36]} 29. Rd1 {[%emt 0:00:35]} Nc6 {[%emt 0:02:47]} 30. Rd2 {[%emt 0:00:28]} R8e7 {[%emt 0:03:39]} 31. Rd1 {[%emt 0:05:08]} Re8 {[%emt 0:04:03]} 32. Rd2 {[%emt 0:00:06]} R8e7 {[%emt 0:05:29]} 33. Rd1 {[%emt 0:01:01]} Re8 {[%emt 0:00:13]} 1/2-1/2

[Event "13th Poti Nana Aleksandria Cup"]
[Site "Poti"]
[Date "2018.07.15"]
[Round "4"]
[White "Tutisani, Noe"]
[Black "Golubov, Saveliy"]
[Result "1/2-1/2"]
[ECO "C50"]
[WhiteElo "2469"]
[BlackElo "2488"]
[Annotator "RC"]
[PlyCount "72"]
[EventDate "2018.07.13"]
[EventType "swiss"]
[EventCountry "GEO"]
[SourceTitle "playchess.com"]
[Source "ChessBase"]
[SourceQuality "1"]
[TimeControl "40/5400+30:1800+30"]

1. e4 {[%emt 0:00:26]} e5 {[%emt 0:00:00]} 2. Nf3 {[%emt 0:00:04]} Nc6 {[%emt 0:00:00]} 3. Bc4 {[%emt 0:00:05]} h6 {[%emt 0:06:36]} 4. O-O {[%emt 0:01:22]} Nf6 {[%emt 0:01:10]} 5. d4 {[%emt 0:03:09]} exd4 {[%emt 0:04:17]} 6. e5 {[%emt 0:02:20]} d5 {[%emt 0:03:50]} 7. Bb5 {[%emt 0:00:08]} Ne4 {[%emt 0:02:16]} 8. Nxd4 {[%emt 0:00:07]} Bd7 {[%emt 0:00:36]} 9. Bxc6 {[%emt 0:19:51]} bxc6 {[%emt 0:02:03]} 10. Nd2 {[%emt 0:00:17]} Nxd2 {[%emt 0:08:28]} 11. Bxd2 {[%emt 0:01:26]} c5 {[%emt 0:00:16]} 12. e6 {[%emt 0:00:09]} Bxe6 {[%emt 0:01:22]} 13. Nxe6 {[%emt 0:00:18]} fxe6 {[%emt 0:00:07]} 14. Qg4 {[%emt 0:04:52]} Qf6 {[%emt 0:08:15]} 15. Rfe1 {[%emt 0:12:08]} Kd7 {[%emt 0:03:16]} 16. Qa4+ {[%emt 0:01:49]} c6 {[%emt 0:01:50]} 17. Qa6 {[%emt 0:06:50]} Bd6 {[%emt 0:05:47]} 18. Bc3 {[%emt 0:00:38]} d4 {[%emt 0:13:50]} 19. Qb7+ {[%emt 0:00:23]} Bc7 {[%emt 0:02:31]} 20. Ba5 {[%emt 0:00:06]} Qd8 {[%emt 0:01:28]} 21. b4 {[%emt 0:07:34]} Qb8 {[%emt 0:03:14]} 22. Qxc7+ {[%emt 0:02:29]} Qxc7 {[%emt 0:00:01]} 23. Bxc7 {[%emt 0:00:07]} Kxc7 {[%emt 0:00:07]} 24. bxc5 {[%emt 0:00:02]} Rhe8 {[%emt 0:00:39]} 25. Re4 {[%emt 0:06:15]} Rad8 {[%emt 0:00:54]} 26. Rd1 {[%emt 0:03:38]} e5 {[%emt 0:01:23]} 27. f4 {[%emt 0:00:12]} Rd5 {[%emt 0:04:05]} 28. Rd2 {[%emt 0:01:32]} Rxc5 {[%emt 0:01:12]} 29. fxe5 {[%emt 0:00:07]} Rcxe5 {[%emt 0:00:41]} 30. Rexd4 {[%emt 0:00:32]} R8e7 {[%emt 0:00:08]} 31. Kf2 {[%emt 0:01:11]} a5 {[%emt 0:09:21]} 32. R4d3 {[%emt 0:02:04]} Re4 {[%emt 0:01:32]} 33. Rf3 {[%emt 0:04:58]} Rc4 {[%emt 0:02:30]} 34. Re3 {[%emt 0:01:06]} Rf7+ {[%emt 0:00:35]} 35. Ke2 {[%emt 0:01:56]} Rcf4 {[%emt 0:01:10]} 36. Kd1 {[%emt 0:02:05]} Rf1+ {[%emt 0:05:45]} 1/2-1/2

[Event "13th Poti Nana Aleksandria Cup"]
[Site "Poti"]
[Date "2018.07.15"]
[Round "4"]
[White "Hayrapetyan, Hovik"]
[Black "Gordon, Evgeny"]
[Result "1-0"]
[ECO "D57"]
[WhiteElo "2453"]
[BlackElo "2016"]
[Annotator "ChessBase"]
[PlyCount "41"]
[EventDate "2018.07.13"]
[EventType "swiss"]
[EventCountry "GEO"]
[SourceTitle "playchess.com"]
[Source "ChessBase"]
[SourceQuality "1"]
[TimeControl "40/5400+30:1800+30"]

1. d4 {[%emt 0:00:00]} d5 {[%emt 0:00:00]} 2. c4 {[%emt 0:00:00]} e6 {[%emt 0:00:00]} 3. Nc3 {[%emt 0:00:04]} Be7 {[%emt 0:00:00]} 4. Nf3 {[%emt 0:00:33]} Nf6 {[%emt 0:00:04]} 5. Bg5 {[%emt 0:00:31]} O-O {[%emt 0:00:28]} 6. e3 {[%emt 0:00:08]} h6 {[%emt 0:01:21]} 7. Bh4 {[%emt 0:00:48]} Ne4 {[%emt 0:01:56]} 8. Bxe7 {[%emt 0:00:24]} Qxe7 {[%emt 0:00:02]} 9. cxd5 {[%emt 0:08:57]} Nxc3 {[%emt 0:00:15]} 10. bxc3 {[%emt 0:00:03]} exd5 {[%emt 0:00:09]} 11. c4 {[%emt 0:00:01]} dxc4 {[%emt 0:11:24]} 12. Bxc4 {[%emt 0:00:08]} b6 {[%emt 0:01:03]} 13. O-O {[%emt 0:01:34]} Bb7 {[%emt 0:00:14]} 14. Rc1 {[%emt 0:04:25]} c6 {[%emt 0:07:58]} 15. Ne5 {[%emt 0:03:07]} c5 {[%emt 0:10:47]} 16. Qg4 {[%emt 0:01:07]} Qg5 {[%emt 0:03:25]} 17. Qxg5 {[%emt 0:00:23]} hxg5 {[%emt 0:00:01]} 18. dxc5 {[%emt 0:00:38]} bxc5 {[%emt 0:00:11]} 19. Rfd1 {[%emt 0:00:26]} Kh7 {[%emt 0:07:47]} 20. Nxf7 {[%emt 0:00:23]} Kg6 {[%emt 0:00:46]} 21. Rd6+ {[%emt 0:00:07]} 1-0

[Event "13th Poti Nana Aleksandria Cup"]
[Site "Poti"]
[Date "2018.07.15"]
[Round "4"]
[White "Mgeladze, Tamaz"]
[Black "Der Manuelian, Haik"]
[Result "1-0"]
[ECO "A06"]
[WhiteElo "2374"]
[BlackElo "2242"]
[Annotator "NA"]
[PlyCount "187"]
[EventDate "2018.07.13"]
[EventType "swiss"]
[EventCountry "GEO"]
[SourceTitle "playchess.com"]
[Source "ChessBase"]
[SourceQuality "1"]
[TimeControl "40/5400+30:1800+30"]

1. c4 {[%emt 0:00:00]} e6 {[%emt 0:00:00]} 2. Nf3 {[%emt 0:01:00]} d5 {[%emt 0:00:00]} 3. b3 {[%emt 0:01:52]} Nf6 {[%emt 0:01:27]} 4. Bb2 {[%emt 0:03:00]} c5 {[%emt 0:00:07]} 5. e3 {[%emt 0:04:50]} b6 {[%emt 0:04:13]} 6. g3 {[%emt 0:04:30]} Bb7 {[%emt 0:01:18]} 7. Bg2 {[%emt 0:00:06]} Nbd7 {[%emt 0:00:27]} 8. Nc3 {[%emt 0:00:28]} Be7 {[%emt 0:00:55]} 9. cxd5 {[%emt 0:00:29]} exd5 {[%emt 0:00:17]} 10. O-O {[%emt 0:00:50]} O-O {[%emt 0:00:35]} 11. d4 {[%emt 0:00:17]} Rc8 {[%emt 0:06:42]} 12. Rc1 {[%emt 0:03:24]} Re8 {[%emt 0:15:29] E17: Damenindisch (Hauptfortsetzung)} 13. Qc2 {[%emt 0:07:01]} (13. dxc5 bxc5 14. Nh4 Nb6 15. a4 a5 16. Nb5 Ba6 17. Re1 Bf8 18. Qf3 Ne4 19. Red1 Bxb5 20. axb5 a4 21. bxa4 Nxa4 {0-1 (61) Sonis,F (2445)-Brunello,S (2542) Chianciano Terme 2018}) 13... Ne4 {[%emt 0:04:46]} 14. dxc5 $146 {[%emt 0:04:11]} ({Vorgänger:} 14. Rfd1 cxd4 15. Nxd4 Bb4 16. Nde2 Ndf6 17. Qd3 Nxf2 18. Kxf2 {1-0 (33) Lenz,A (2197)-Schneider Zinner,H (2377) Zwettl 2012}) 14... Nxc3 {[%emt 0:01:59]} 15. Qxc3 {[%emt 0:06:02]} Bf6 {[%emt 0:00:27]} 16. Qd2 {[%emt 0:00:04]} bxc5 {[%emt 0:02:07]} 17. Rfd1 {[%emt 0:00:32]} Bxb2 {[%emt 0:02:26]} 18. Qxb2 {[%emt 0:01:29]} Nf6 {[%emt 0:00:15]} 19. Rc2 {[%emt 0:11:05]} Qb6 {[%emt 0:10:20]} 20. Rdc1 {[%emt 0:02:44]} Ba6 {[%emt 0:01:29]} 21. Bh3 {[%emt 0:10:17]} Rc7 {[%emt 0:01:26]} 22. Rd1 {[%emt 0:09:48]} Bc8 {[%emt 0:01:46]} 23. Bg2 {[%emt 0:00:57]} Bf5 {[%emt 0:02:01]} 24. Rcc1 {[%emt 0:00:38]} Be4 {[%emt 0:01:14]} 25. h3 {[%emt 0:04:00]} a5 {[%emt 0:02:07]} 26. Qd2 {[%emt 0:04:04]} Qb4 {[%emt 0:12:12]} 27. Ne1 {[%emt 0:01:42]} Bxg2 {[%emt 0:05:34]} 28. Nxg2 {[%emt 0:00:11]} Qxd2 {[%emt 0:04:46]} 29. Rxd2 {[%emt 0:00:02]} g5 {[%emt 0:00:08]} 30. Ne1 {[%emt 0:00:52]} a4 {[%emt 0:03:31]} 31. b4 {[%emt 0:02:15]} c4 {[%emt 0:02:01]} 32. a3 {[%emt 0:00:01]} Rd7 {[%emt 0:01:21]} 33. Nf3 {[%emt 0:00:38]} h6 {[%emt 0:00:54]} 34. Rd4 {[%emt 0:01:26]} Kf8 {[%emt 0:01:23]} 35. Kf1 {[%emt 0:01:07]} Re6 {[%emt 0:03:16]} 36. Nd2 {[%emt 0:00:46]} Ke7 {[%emt 0:03:03]} 37. g4 {[%emt 0:01:03]} Kd8 {[%emt 0:01:15]} 38. Ke2 {[%emt 0:00:36]} Rc6 {[%emt 0:01:24]} 39. Nf3 {[%emt 0:00:44]} Re6 {[%emt 0:00:11]} 40. Rdd1 {[%emt 0:00:00]} Ne8 {[%emt 0:00:00]} 41. Nd4 {[%emt 0:05:43]} Rb6 {[%emt 0:03:47]} 42. h4 {[%emt 0:02:17]} Nd6 {[%emt 0:01:49]} 43. hxg5 {[%emt 0:02:41]} hxg5 {[%emt 0:00:18]} 44. Rh1 {[%emt 0:00:24]} Nb5 {[%emt 0:00:35]} 45. Rh8+ {[%emt 0:00:44]} Kc7 {[%emt 0:00:08]} 46. Nxb5+ {[%emt 0:00:25]} Rxb5 {[%emt 0:00:02]} 47. Ra8 {[%emt 0:04:15]} Rb7 {[%emt 0:04:33]} 48. Rxa4 {[%emt 0:00:26]} Kb6 {[%emt 0:00:07]} 49. Rd1 {[%emt 0:03:37]} Rbc7 {[%emt 0:00:26]} 50. Ra5 {[%emt 0:00:29]} c3 {[%emt 0:00:16] [#]} 51. Kd3 $18 {[%emt 0:00:45]} Rc4 {[%emt 0:02:14]} 52. Kc2 {[%emt 0:01:26]} Rxg4 {[%emt 0:00:19]} 53. Rdxd5 {[%emt 0:01:58]} Rxd5 {[%emt 0:00:25]} 54. Rxd5 {[%emt 0:00:05]} Rg2 {[%emt 0:00:12]} 55. Kxc3 {[%emt 0:00:07]} Rxf2 {[%emt 0:00:05]} 56. Rxg5 {[%emt 0:00:09]} f5 {[%emt 0:00:46]} 57. Rg6+ {[%emt 0:00:47]} Kc7 {[%emt 0:00:30]} 58. Rf6 {[%emt 0:01:23]} Ra2 {[%emt 0:00:41]} 59. Kb3 {[%emt 0:00:48]} Re2 {[%emt 0:00:05]} 60. Rxf5 {[%emt 0:00:18]} Rxe3+ {[%emt 0:00:01]} 61. Ka4 {[%emt 0:00:08]} Kb6 {[%emt 0:01:00]} 62. Rf6+ {[%emt 0:00:41]} Kb7 {[%emt 0:00:15]} 63. Rf4 {[%emt 0:00:21]} Kb6 {[%emt 0:00:20]} 64. b5 {[%emt 0:01:51]} Re6 {[%emt 0:02:04]} 65. Kb4 {[%emt 0:00:14]} Rh6 {[%emt 0:00:04]} 66. a4 {[%emt 0:00:05]} Rh7 {[%emt 0:00:12]} 67. a5+ {[%emt 0:00:06]} Kb7 {[%emt 0:00:29]} 68. Rf5 {[%emt 0:00:17]} Ka7 {[%emt 0:00:36]} 69. Re5 {[%emt 0:00:17]} Rg7 {[%emt 0:00:12]} 70. a6 {[%emt 0:00:12]} Kb6 {[%emt 0:01:11]} 71. Re6+ {[%emt 0:00:06]} Ka7 {[%emt 0:00:08]} 72. Ka5 {[%emt 0:00:11]} Rg5 {[%emt 0:00:03]} 73. Re7+ {[%emt 0:00:03]} Kb8 {[%emt 0:00:22]} 74. Rb7+ {[%emt 0:00:33]} Ka8 {[%emt 0:00:03]} 75. Rd7 {[%emt 0:00:04]} Kb8 {[%emt 0:00:13]} 76. Kb6 {[%emt 0:00:10]} Rg6+ {[%emt 0:00:05]} 77. Kc5 {[%emt 0:00:05]} Rg5+ {[%emt 0:00:07]} 78. Rd5 {[%emt 0:00:03]} Rg1 {[%emt 0:00:32]} 79. Kc6 {[%emt 0:00:20]} Rc1+ {[%emt 0:00:03]} 80. Rc5 {[%emt 0:01:15]} Rh1 {[%emt 0:00:40]} 81. b6 {[%emt 0:00:39]} Rb1 {[%emt 0:02:14]} 82. Rc4 {[%emt 0:00:44]} Rb2 {[%emt 0:01:14]} 83. Re4 {[%emt 0:01:06]} Rc2+ {[%emt 0:00:09]} 84. Kb5 {[%emt 0:00:30]} Rb2+ {[%emt 0:00:07]} 85. Rb4 {[%emt 0:01:17]} Rh2 {[%emt 0:00:25]} 86. Rg4 {[%emt 0:00:14]} Rb2+ {[%emt 0:00:10]} 87. Kc5 {[%emt 0:00:09]} Rc2+ {[%emt 0:00:05]} 88. Kd4 {[%emt 0:00:16]} Rd2+ {[%emt 0:01:01]} 89. Kc3 {[%emt 0:00:14]} Rd8 {[%emt 0:00:04]} 90. Kc4 {[%emt 0:00:22]} Rh8 {[%emt 0:00:18]} 91. Re4 {[%emt 0:00:48]} Rg8 {[%emt 0:01:14]} 92. Re5 {[%emt 0:00:23]} Rh8 {[%emt 0:01:54]} 93. Kb5 {[%emt 0:00:23]} Ka8 {[%emt 0:00:11]} 94. a7 {[%emt 0:00:55]} 1-0

[Event "13th Poti Nana Aleksandria Cup"]
[Site "Poti"]
[Date "2018.07.15"]
[Round "4"]
[White "Chkhaidze, Nikoloz"]
[Black "Ghvamberia, Nika"]
[Result "1/2-1/2"]
[ECO "B43"]
[WhiteElo "2337"]
[BlackElo "2236"]
[Annotator "NA"]
[PlyCount "76"]
[EventDate "2018.07.13"]
[EventType "swiss"]
[EventCountry "GEO"]
[SourceTitle "playchess.com"]
[Source "ChessBase"]
[SourceQuality "1"]
[TimeControl "40/5400+30:1800+30"]

1. e4 {[%emt 0:00:00]} c5 {[%emt 0:00:00]} 2. Nf3 {[%emt 0:00:00]} e6 {[%emt 0:00:12]} 3. Nc3 {[%emt 0:00:46]} a6 {[%emt 0:00:18]} 4. d4 {[%emt 0:00:07]} cxd4 {[%emt 0:00:04]} 5. Nxd4 {[%emt 0:00:03]} Qc7 {[%emt 0:00:15]} 6. g4 {[%emt 0:00:08]} b5 {[%emt 0:04:47]} 7. Bg2 {[%emt 0:00:20]} Bb7 {[%emt 0:00:07]} 8. Qe2 {[%emt 0:01:00]} Nc6 {[%emt 0:09:22]} 9. Nxc6 {[%emt 0:04:19]} Qxc6 {[%emt 0:05:11]} 10. a3 {[%emt 0:00:38]} Bc5 {[%emt 0:07:13]} 11. Be3 {[%emt 0:03:36]} Ne7 {[%emt 0:02:30]} 12. O-O-O {[%emt 0:04:47]} d6 {[%emt 0:05:35]} 13. f4 {[%emt 0:14:42]} O-O {[%emt 0:08:23]} 14. h4 {[%emt 0:16:00]} Bxa3 {[%emt 0:10:51]} 15. Nd5 {[%emt 0:08:22]} exd5 {[%emt 0:12:38]} 16. exd5 {[%emt 0:00:22]} Bxb2+ {[%emt 0:10:21]} 17. Kxb2 {[%emt 0:00:08]} Qc7 {[%emt 0:00:10]} 18. Kb1 {[%emt 0:16:14]} Rfe8 {[%emt 0:01:50]} 19. Rhe1 {[%emt 0:00:36]} Rac8 {[%emt 0:03:13]} 20. Bc1 {[%emt 0:00:22]} Qd7 {[%emt 0:05:03]} 21. Qd3 {[%emt 0:06:20]} Rc5 {[%emt 0:03:05]} 22. Bb2 {[%emt 0:01:59]} Rec8 {[%emt 0:06:42]} 23. Be4 {[%emt 0:04:34]} Kh8 {[%emt 0:01:26]} 24. h5 {[%emt 0:03:29]} h6 {[%emt 0:01:07]} 25. g5 {[%emt 0:00:48]} Nxd5 {[%emt 0:00:16]} 26. Qd4 {[%emt 0:05:25]} f6 {[%emt 0:00:47]} 27. gxh6 {[%emt 0:01:27]} Nc3+ {[%emt 0:00:18]} 28. Bxc3 {[%emt 0:00:27]} Bxe4 {[%emt 0:00:10]} 29. hxg7+ {[%emt 0:01:23]} Qxg7 {[%emt 0:00:01]} 30. h6 {[%emt 0:03:54]} Bxc2+ {[%emt 0:00:04]} 31. Kb2 {[%emt 0:00:17]} Qf7 {[%emt 0:00:14]} 32. Qxf6+ {[%emt 0:00:24]} Qxf6 {[%emt 0:00:01]} 33. Bxf6+ {[%emt 0:00:04]} Kh7 {[%emt 0:00:10]} 34. Re7+ {[%emt 0:03:00]} Kxh6 {[%emt 0:00:40]} 35. Rh1+ {[%emt 0:00:54]} Kg6 {[%emt 0:01:45]} 36. Bd4 {[%emt 0:00:08]} Rc4 {[%emt 0:01:07]} 37. Re6+ {[%emt 0:00:55]} Kf5 {[%emt 0:00:00]} 38. Rxd6 {[%emt 0:00:13]} Kxf4 {[%emt 0:01:53]} 1/2-1/2

[Event "13th Poti Nana Aleksandria Cup"]
[Site "Poti"]
[Date "2018.07.15"]
[Round "4"]
[White "Matsenko, Andrei"]
[Black "Sindarov, Javokhir"]
[Result "0-1"]
[ECO "E91"]
[WhiteElo "2299"]
[BlackElo "2474"]
[Annotator "ChessBase"]
[PlyCount "82"]
[EventDate "2018.07.13"]
[EventType "swiss"]
[EventCountry "GEO"]
[SourceTitle "playchess.com"]
[Source "ChessBase"]
[SourceQuality "1"]
[TimeControl "40/5400+30:1800+30"]

1. Nf3 {[%emt 0:00:00]} Nf6 {[%emt 0:05:27]} 2. c4 {[%emt 0:00:00]} g6 {[%emt 0:00:09]} 3. Nc3 {[%emt 0:00:00]} Bg7 {[%emt 0:00:07]} 4. e4 {[%emt 0:00:06]} d6 {[%emt 0:00:03]} 5. d4 {[%emt 0:00:04]} O-O {[%emt 0:00:05]} 6. Be2 {[%emt 0:00:12]} Bg4 {[%emt 0:00:06]} 7. Be3 {[%emt 0:02:17]} Nfd7 {[%emt 0:00:13]} 8. d5 {[%emt 0:00:32]} Na6 {[%emt 0:01:28]} 9. Nd4 {[%emt 0:01:17]} Bxe2 {[%emt 0:00:23]} 10. Qxe2 {[%emt 0:01:10]} Qc8 {[%emt 0:00:25]} 11. O-O {[%emt 0:12:48]} c5 {[%emt 0:00:34]} 12. Nf3 {[%emt 0:02:13]} Nc7 {[%emt 0:00:27]} 13. Qd2 {[%emt 0:01:29]} Re8 {[%emt 0:02:27]} 14. Rae1 {[%emt 0:02:49]} a6 {[%emt 0:00:21]} 15. a4 {[%emt 0:00:08]} b5 {[%emt 0:12:45]} 16. axb5 {[%emt 0:04:20]} axb5 {[%emt 0:00:06]} 17. Nxb5 {[%emt 0:08:19]} Nxb5 {[%emt 0:00:39]} 18. cxb5 {[%emt 0:00:08]} Rb8 {[%emt 0:00:22]} 19. b4 {[%emt 0:04:47]} cxb4 {[%emt 0:00:13]} 20. Rc1 {[%emt 0:01:32]} Bc3 {[%emt 0:00:29]} 21. Qe2 {[%emt 0:00:40]} Nc5 {[%emt 0:03:21]} 22. Bd4 {[%emt 0:03:15]} Nb3 {[%emt 0:00:35]} 23. Rc2 {[%emt 0:00:10]} Nxd4 {[%emt 0:00:40]} 24. Nxd4 {[%emt 0:00:06]} Qc5 {[%emt 0:00:13]} 25. Rd1 {[%emt 0:02:05]} Rb7 {[%emt 0:01:48]} 26. Qf3 {[%emt 0:12:29]} Bxd4 {[%emt 0:07:50]} 27. Rxc5 {[%emt 0:00:16]} dxc5 {[%emt 0:00:03]} 28. e5 {[%emt 0:09:53]} Rxb5 {[%emt 0:01:09]} 29. d6 {[%emt 0:01:47]} exd6 {[%emt 0:00:16]} 30. exd6 {[%emt 0:01:34]} Rb6 {[%emt 0:03:16]} 31. d7 {[%emt 0:02:45]} Rd8 {[%emt 0:00:06]} 32. Qd5 {[%emt 0:05:32]} b3 {[%emt 0:00:22]} 33. Rb1 {[%emt 0:01:21]} b2 {[%emt 0:00:10]} 34. h4 {[%emt 0:01:07]} Ra6 {[%emt 0:07:17]} 35. Kh2 {[%emt 0:00:37]} Ra1 {[%emt 0:00:53]} 36. Rxb2 {[%emt 0:01:40]} Bxb2 {[%emt 0:00:15]} 37. Qxc5 {[%emt 0:00:03]} Bf6 {[%emt 0:01:26]} 38. Qd6 {[%emt 0:00:03]} Kg7 {[%emt 0:00:27]} 39. h5 {[%emt 0:00:02]} h6 {[%emt 0:00:25]} 40. hxg6 {[%emt 0:00:00]} fxg6 {[%emt 0:00:00]} 41. f4 {[%emt 0:01:19]} Ra7 {[%emt 0:00:23]} 0-1

[Event "13th Poti Nana Aleksandria Cup"]
[Site "Poti"]
[Date "2018.07.15"]
[Round "4"]
[White "Poormosavi, Seyed Kian"]
[Black "Janiashvili, Mariami"]
[Result "1/2-1/2"]
[ECO "A04"]
[WhiteElo "2221"]
[BlackElo "1988"]
[Annotator "NA"]
[PlyCount "87"]
[EventDate "2018.07.13"]
[EventType "swiss"]
[EventCountry "GEO"]
[SourceTitle "playchess.com"]
[Source "ChessBase"]
[SourceQuality "1"]
[TimeControl "40/5400+30:1800+30"]

1. Nf3 {[%emt 0:06:08]} e6 {[%emt 0:00:29]} 2. g3 {[%emt 0:00:14]} d5 {[%emt 0:00:07]} 3. Bg2 {[%emt 0:00:20]} Nf6 {[%emt 0:00:06]} 4. O-O {[%emt 0:00:18]} Bd6 {[%emt 0:01:10]} 5. d4 {[%emt 0:01:27]} O-O {[%emt 0:00:19]} 6. c4 {[%emt 0:01:19]} c6 {[%emt 0:01:01]} 7. Nc3 {[%emt 0:02:03]} Nbd7 {[%emt 0:00:51]} 8. Qc2 {[%emt 0:06:49]} Re8 {[%emt 0:02:48]} 9. Bf4 {[%emt 0:04:26]} Bxf4 {[%emt 0:07:09]} 10. gxf4 {[%emt 0:00:11]} Nf8 {[%emt 0:00:27]} 11. c5 {[%emt 0:03:57]} Ng4 {[%emt 0:01:54]} 12. Kh1 {[%emt 0:20:00]} Ng6 {[%emt 0:05:23]} 13. e3 {[%emt 0:01:05]} Nh4 {[%emt 0:03:34]} 14. Rg1 {[%emt 0:08:56]} Qf6 {[%emt 0:03:21]} 15. Ne5 {[%emt 0:07:57]} Nxe5 {[%emt 0:14:04]} 16. fxe5 {[%emt 0:00:53]} Qh6 {[%emt 0:01:12]} 17. f4 {[%emt 0:01:47]} f6 {[%emt 0:04:06]} 18. exf6 {[%emt 0:04:14]} Qxf6 {[%emt 0:00:34]} 19. Bf1 {[%emt 0:01:21]} e5 {[%emt 0:04:33]} 20. dxe5 {[%emt 0:01:42]} Qh6 {[%emt 0:00:25]} 21. Bd3 {[%emt 0:04:53]} Rf8 {[%emt 0:05:41]} 22. Raf1 {[%emt 0:09:02]} Bh3 {[%emt 0:05:18]} 23. Rf2 {[%emt 0:01:45]} Rae8 {[%emt 0:04:19]} 24. Qd2 {[%emt 0:01:09]} Kh8 {[%emt 0:06:58]} 25. Rg5 {[%emt 0:01:51]} Rd8 {[%emt 0:02:46]} 26. Qd1 {[%emt 0:03:22]} g6 {[%emt 0:07:06]} 27. Bf1 {[%emt 0:02:41]} Be6 {[%emt 0:03:01]} 28. Qd2 {[%emt 0:01:10]} Rf7 {[%emt 0:04:10]} 29. Rg1 {[%emt 0:01:17]} d4 {[%emt 0:04:16]} 30. exd4 Rfd7 31. d5 {[%emt 0:01:28]} Rxd5 {[%emt 0:00:56]} 32. Qe1 {[%emt 0:00:34]} Rd4 {[%emt 0:01:55]} 33. Qc1 {[%emt 0:01:14]} Qf8 {[%emt 0:02:41]} 34. Bg2 {[%emt 0:00:40]} Nxg2 {[%emt 0:00:40]} 35. Rgxg2 {[%emt 0:00:28]} Qxc5 {[%emt 0:00:22]} 36. Qe1 {[%emt 0:00:30]} Bh3 {[%emt 0:03:14]} 37. Rg3 {[%emt 0:00:26]} Be6 {[%emt 0:00:08]} 38. h4 {[%emt 0:00:28]} Rd3 {[%emt 0:01:10]} 39. Rfg2 {[%emt 0:00:36]} Bd5 {[%emt 0:00:39]} 40. Nxd5 {[%emt 0:00:00]} R3xd5 {[%emt 0:00:00]} 41. Qc3 {[%emt 0:14:57]} Rf8 {[%emt 0:05:52]} 42. Qxc5 {[%emt 0:10:21]} Rxc5 {[%emt 0:00:01]} 43. h5 {[%emt 0:00:07]} Rxf4 {[%emt 0:08:49]} 44. hxg6 {[%emt 0:00:28]} 1/2-1/2